[Event "*** SCC Grand Prix: Titled Tuesday Blitz"]
[Site "Chess.com"]
[Date "2020.10.13"]
[Round "5"]
[White "karinachess1"]
[Black "Triumphmate"]
[Result "1-0"]
[WhiteElo "2515"]
[BlackElo "2451"]
[TimeControl "180+1"]
[EndTime "10:57:27 PDT"]
[Termination "karinachess1 won by resignation"]

1. e4 {[%clk 0:03:00.9]} 1... d5 {[%clk 0:02:59.6]} 2. exd5 {[%clk 0:03:00.8]}
2... Nf6 {[%clk 0:02:59.6]} 3. Bb5+ {[%clk 0:03:00.3]} 3... c6 {[%clk 0:02:59]}
4. dxc6 {[%clk 0:02:55.4]} 4... Nxc6 {[%clk 0:02:59.9]} 5. Nf3 {[%clk
0:02:50.3]} 5... Bg4 {[%clk 0:02:59.9]} 6. h3 {[%clk 0:02:44.9]} 6... Bh5 {[%clk
0:02:58.9]} 7. O-O {[%clk 0:02:43]} 7... e6 {[%clk 0:02:55.7]} 8. d4 {[%clk
0:02:37.7]} 8... Bd6 {[%clk 0:02:53.4]} 9. c3 {[%clk 0:02:36]} 9... h6 {[%clk
0:02:47.7]} 10. Be2 {[%clk 0:02:16.3]} 10... O-O {[%clk 0:02:45.6]} 11. Ne5
{[%clk 0:02:09.4]} 11... Bxe2 {[%clk 0:02:08.6]} 12. Qxe2 {[%clk 0:02:10.3]}
12... Bxe5 {[%clk 0:02:09.1]} 13. dxe5 {[%clk 0:02:10.5]} 13... Nd5 {[%clk
0:02:09.8]} 14. Na3 {[%clk 0:02:03.5]} 14... Qc7 {[%clk 0:02:04]} 15. Re1 {[%clk
0:01:20.9]} 15... Rad8 {[%clk 0:02:02.4]} 16. Nc4 {[%clk 0:01:08.3]} 16... b5
{[%clk 0:01:57.9]} 17. Nd6 {[%clk 0:01:07.1]} 17... Nxe5 {[%clk 0:01:42.3]} 18.
Nxb5 {[%clk 0:01:04.8]} 18... Qb6 {[%clk 0:01:42.4]} 19. c4 {[%clk 0:00:50.7]}
19... Nxc4 {[%clk 0:00:51.9]} 20. Qxc4 {[%clk 0:00:47.9]} 20... Rc8 {[%clk
0:00:45.2]} 21. Qe2 {[%clk 0:00:46.7]} 21... Rfd8 {[%clk 0:00:41]} 22. Be3
{[%clk 0:00:31.6]} 22... Nxe3 {[%clk 0:00:30.2]} 23. fxe3 {[%clk 0:00:32.5]}
23... Rc5 {[%clk 0:00:25.3]} 24. Nc3 {[%clk 0:00:31.3]} 24... Rg5 {[%clk
0:00:19.7]} 25. Rad1 {[%clk 0:00:31.4]} 25... Rb8 {[%clk 0:00:19.7]} 26. b3
{[%clk 0:00:29.8]} 26... Rg6 {[%clk 0:00:19.9]} 27. Rd3 {[%clk 0:00:22.8]} 27...
Qa5 {[%clk 0:00:19.4]} 28. Red1 {[%clk 0:00:21.6]} 28... Kh7 {[%clk 0:00:19.5]}
29. Ne4 {[%clk 0:00:16.8]} 29... Rb4 {[%clk 0:00:19.2]} 30. Nf2 {[%clk
0:00:16.3]} 30... Qf5 {[%clk 0:00:17.7]} 31. e4 {[%clk 0:00:14.2]} 31... Qg5
{[%clk 0:00:18.2]} 32. Qf3 {[%clk 0:00:13.6]} 32... f5 {[%clk 0:00:14.7]} 33.
exf5 {[%clk 0:00:13.4]} 33... exf5 {[%clk 0:00:15.1]} 34. Rd5 {[%clk 0:00:13.4]}
34... Rf4 {[%clk 0:00:14.9]} 35. h4 {[%clk 0:00:10.4]} 35... Qxh4 {[%clk
0:00:10.6]} 36. Qe3 {[%clk 0:00:09.3]} 36... Qg5 {[%clk 0:00:09.1]} 37. g3
{[%clk 0:00:09]} 37... Qxg3+ {[%clk 0:00:07.3]} 38. Qxg3 {[%clk 0:00:09.7]}
38... Rxg3+ {[%clk 0:00:08.2]} 39. Kf1 {[%clk 0:00:10.6]} 39... Rgf3 {[%clk
0:00:08.9]} 40. R1d2 {[%clk 0:00:11.1]} 40... g5 {[%clk 0:00:08.6]} 41. Kg2
{[%clk 0:00:11.5]} 41... Kg6 {[%clk 0:00:09.5]} 42. Nd3 {[%clk 0:00:11]} 42...
Rxd3 {[%clk 0:00:07]} 43. R5xd3 {[%clk 0:00:10.5]} 43... Rg4+ {[%clk 0:00:07.9]}
44. Kf2 {[%clk 0:00:10.4]} 44... f4 {[%clk 0:00:08]} 45. Rd6+ {[%clk 0:00:10.5]}
45... Kh5 {[%clk 0:00:08.1]} 46. Rf6 {[%clk 0:00:09.8]} 46... Rh4 {[%clk
0:00:08.2]} 47. Rdd6 {[%clk 0:00:09.6]} 47... Rh2+ {[%clk 0:00:08.1]} 48. Kg1
{[%clk 0:00:09.2]} 48... Rxa2 {[%clk 0:00:08.2]} 49. Rxh6+ {[%clk 0:00:09.6]}
49... Kg4 {[%clk 0:00:09.1]} 50. Rhg6 {[%clk 0:00:10]} 50... Ra1+ {[%clk
0:00:08]} 51. Kf2 {[%clk 0:00:10]} 51... Ra2+ {[%clk 0:00:08.9]} 52. Ke1 {[%clk
0:00:10.5]} 52... Kf3 {[%clk 0:00:07.4]} 53. Rxg5 {[%clk 0:00:10.3]} 53... Ra1+
{[%clk 0:00:06.6]} 54. Rd1 {[%clk 0:00:10.4]} 54... Ra2 {[%clk 0:00:07.4]} 55.
Rgd5 {[%clk 0:00:10.1]} 55... Rh2 {[%clk 0:00:07.7]} 56. R5d3+ {[%clk
0:00:10.3]} 56... Ke4 {[%clk 0:00:08]} 57. Kf1 {[%clk 0:00:09.8]} 57... a5
{[%clk 0:00:05.1]} 58. Kg1 {[%clk 0:00:09.1]} 58... Rh8 {[%clk 0:00:04.6]} 59.
Kf2 {[%clk 0:00:08.7]} 59... Rg8 {[%clk 0:00:05]} 60. Rd4+ {[%clk 0:00:08.6]}
60... Ke5 {[%clk 0:00:04.7]} 61. Ra4 {[%clk 0:00:08.9]} 61... Ke6 {[%clk
0:00:05.3]} 62. Rxa5 {[%clk 0:00:08.7]} 62... Rc8 {[%clk 0:00:06.1]} 63. Rd3
{[%clk 0:00:08.5]} 63... Rb8 {[%clk 0:00:04.1]} 64. Kf3 {[%clk 0:00:08.7]} 64...
Rb4 {[%clk 0:00:05]} 65. Ra4 {[%clk 0:00:09.1]} 65... Rxa4 {[%clk 0:00:05.3]}
1-0

[Event "*** SCC Grand Prix: Titled Tuesday Blitz"]
[Site "Chess.com"]
[Date "2020.10.13"]
[Round "5"]
[White "BeanScreen"]
[Black "valeriocarnicelli"]
[Result "0-1"]
[WhiteElo "2721"]
[BlackElo "2561"]
[TimeControl "180+1"]
[EndTime "10:57:29 PDT"]
[Termination "valeriocarnicelli won by resignation"]

1. e4 {[%clk 0:02:59.9]} 1... c5 {[%clk 0:02:59.6]} 2. Nf3 {[%clk 0:03:00.1]}
2... Nc6 {[%clk 0:02:59.9]} 3. Nc3 {[%clk 0:03:00.2]} 3... e6 {[%clk 0:02:59.3]}
4. d4 {[%clk 0:03:00.3]} 4... cxd4 {[%clk 0:03:00.2]} 5. Nxd4 {[%clk 0:03:01.2]}
5... Nf6 {[%clk 0:03:00.8]} 6. Ndb5 {[%clk 0:03:01.3]} 6... d6 {[%clk
0:03:00.3]} 7. Bf4 {[%clk 0:03:01.3]} 7... e5 {[%clk 0:03:00.8]} 8. Bg5 {[%clk
0:03:01.9]} 8... a6 {[%clk 0:03:01.4]} 9. Na3 {[%clk 0:03:02.4]} 9... b5 {[%clk
0:03:01.9]} 10. Nd5 {[%clk 0:03:03]} 10... Be7 {[%clk 0:03:02.5]} 11. Bxf6
{[%clk 0:03:03.4]} 11... Bxf6 {[%clk 0:03:03.4]} 12. c4 {[%clk 0:03:04]} 12...
b4 {[%clk 0:03:03.3]} 13. Nc2 {[%clk 0:03:04.6]} 13... a5 {[%clk 0:03:04]} 14.
Be2 {[%clk 0:03:04.1]} 14... O-O {[%clk 0:03:04.2]} 15. O-O {[%clk 0:03:04.2]}
15... Be6 {[%clk 0:03:03.4]} 16. Bg4 {[%clk 0:03:03.6]} 16... Bxd5 {[%clk
0:03:02.4]} 17. cxd5 {[%clk 0:03:03.5]} 17... Nd4 {[%clk 0:03:02.9]} 18. Nxd4
{[%clk 0:03:03.6]} 18... exd4 {[%clk 0:03:03.8]} 19. Rc1 {[%clk 0:03:04]} 19...
Re8 {[%clk 0:02:51.8]} 20. Qd3 {[%clk 0:03:03]} 20... Ra7 {[%clk 0:02:43]} 21.
Qb5 {[%clk 0:02:58.7]} 21... Qb8 {[%clk 0:02:10.8]} 22. Qxb8 {[%clk 0:02:42.7]}
22... Rxb8 {[%clk 0:02:11.7]} 23. Rc6 {[%clk 0:02:43]} 23... Rd8 {[%clk
0:02:09.1]} 24. Rfc1 {[%clk 0:02:42.6]} 24... d3 {[%clk 0:02:06.4]} 25. Rc8
{[%clk 0:02:38.6]} 25... Ra8 {[%clk 0:02:00.3]} 26. Rxa8 {[%clk 0:02:36.4]}
26... Rxa8 {[%clk 0:02:01.2]} 27. b3 {[%clk 0:02:33.2]} 27... Bc3 {[%clk
0:01:59.4]} 28. Kf1 {[%clk 0:02:26.8]} 28... a4 {[%clk 0:01:58.1]} 29. Bd1
{[%clk 0:02:20.9]} 29... axb3 {[%clk 0:01:57.6]} 30. Bxb3 {[%clk 0:02:21.8]}
30... g6 {[%clk 0:01:55.5]} 31. Rd1 {[%clk 0:02:16.7]} 31... d2 {[%clk
0:01:54.5]} 32. Ke2 {[%clk 0:02:16.8]} 32... Kg7 {[%clk 0:01:53.8]} 33. f4
{[%clk 0:02:11.4]} 33... Re8 {[%clk 0:01:46.8]} 34. Kd3 {[%clk 0:02:06.9]} 34...
f5 {[%clk 0:01:46]} 35. exf5 {[%clk 0:01:59.6]} 35... gxf5 {[%clk 0:01:46.6]}
36. a4 {[%clk 0:01:38.7]} 36... Kf6 {[%clk 0:01:46.1]} 37. Kc4 {[%clk
0:01:37.9]} 37... Re4+ {[%clk 0:01:21.8]} 38. Kb5 {[%clk 0:01:37.6]} 38... Rxf4
{[%clk 0:01:21.3]} 39. a5 {[%clk 0:01:36.3]} 39... Re4 {[%clk 0:01:20]} 40. a6
{[%clk 0:01:24.9]} 40... Re7 {[%clk 0:01:19.1]} 41. Kb6 {[%clk 0:00:51.1]} 41...
Re1 {[%clk 0:00:20.8]} 42. a7 {[%clk 0:00:41.4]} 42... Bd4+ {[%clk 0:00:20.9]}
43. Kb7 {[%clk 0:00:33.1]} 43... Bxa7 {[%clk 0:00:21]} 44. Kxa7 {[%clk
0:00:26.2]} 44... Rxd1 {[%clk 0:00:21.3]} 45. Bxd1 {[%clk 0:00:27.1]} 45... Ke5
{[%clk 0:00:22]} 46. Kb6 {[%clk 0:00:26.1]} 46... Kd4 {[%clk 0:00:19.7]} 47. Kb5
{[%clk 0:00:20.5]} 47... Kc3 {[%clk 0:00:19.7]} 48. Ka4 {[%clk 0:00:20.7]} 48...
f4 {[%clk 0:00:17.3]} 49. h3 {[%clk 0:00:19]} 49... h6 {[%clk 0:00:16.8]} 50. h4
{[%clk 0:00:18.7]} 50... h5 {[%clk 0:00:15.8]} 51. Bb3 {[%clk 0:00:17.6]} 51...
Kd3 {[%clk 0:00:06.3]} 52. Kxb4 {[%clk 0:00:17.5]} 52... Ke2 {[%clk 0:00:07]}
53. Kb5 {[%clk 0:00:17.5]} 53... Kf2 {[%clk 0:00:05.6]} 54. Kc6 {[%clk
0:00:13.1]} 54... Kxg2 {[%clk 0:00:05.9]} 55. Kxd6 {[%clk 0:00:13]} 55... f3
{[%clk 0:00:06.1]} 56. Ke7 {[%clk 0:00:09.2]} 56... f2 {[%clk 0:00:06.3]} 57. d6
{[%clk 0:00:09.3]} 57... f1=Q {[%clk 0:00:06.6]} 58. d7 {[%clk 0:00:09.3]} 58...
Qe2+ {[%clk 0:00:06.8]} 59. Kf8 {[%clk 0:00:08.4]} 59... d1=Q {[%clk 0:00:06.4]}
60. Bxd1 {[%clk 0:00:08.4]} 60... Qxd1 {[%clk 0:00:07.3]} 61. Ke7 {[%clk
0:00:09]} 61... Kg3 {[%clk 0:00:06.7]} 62. d8=Q {[%clk 0:00:07.5]} 62... Qxd8+
{[%clk 0:00:06.7]} 63. Kxd8 {[%clk 0:00:08]} 63... Kxh4 {[%clk 0:00:07.6]} 64.
Ke7 {[%clk 0:00:08.9]} 64... Kg3 {[%clk 0:00:08]} 65. Kf6 {[%clk 0:00:09.2]}
65... h4 {[%clk 0:00:08.9]} 66. Kg5 {[%clk 0:00:09.6]} 66... h3 {[%clk
0:00:09.8]} 67. Kf5 {[%clk 0:00:10.1]} 67... h2 {[%clk 0:00:10.5]} 0-1

[Event "*** SCC Grand Prix: Titled Tuesday Blitz"]
[Site "Chess.com"]
[Date "2020.10.13"]
[Round "5"]
[White "Ranindu2003"]
[Black "anasta10"]
[Result "1-0"]
[WhiteElo "2617"]
[BlackElo "2414"]
[TimeControl "180+1"]
[EndTime "10:57:31 PDT"]
[Termination "Ranindu2003 won by resignation"]

1. e4 {[%clk 0:02:59.8]} 1... e6 {[%clk 0:02:50.6]} 2. d4 {[%clk 0:02:59.1]}
2... d5 {[%clk 0:02:49]} 3. Nd2 {[%clk 0:02:59.6]} 3... c5 {[%clk 0:02:48.7]} 4.
exd5 {[%clk 0:02:59.6]} 4... exd5 {[%clk 0:02:49.6]} 5. Ngf3 {[%clk 0:02:59.5]}
5... Nc6 {[%clk 0:02:48.8]} 6. dxc5 {[%clk 0:02:58.8]} 6... Bxc5 {[%clk
0:02:48.3]} 7. Nb3 {[%clk 0:02:59.5]} 7... Bb6 {[%clk 0:02:48.2]} 8. Bd3 {[%clk
0:02:58.6]} 8... Nf6 {[%clk 0:02:48.3]} 9. O-O {[%clk 0:02:57.3]} 9... O-O
{[%clk 0:02:48.2]} 10. h3 {[%clk 0:02:57.3]} 10... h6 {[%clk 0:02:48.1]} 11. c3
{[%clk 0:02:56.8]} 11... Re8 {[%clk 0:02:48.2]} 12. Nbd4 {[%clk 0:02:56]} 12...
Nxd4 {[%clk 0:02:47.9]} 13. cxd4 {[%clk 0:02:56.1]} 13... Be6 {[%clk 0:02:44.9]}
14. Be3 {[%clk 0:02:54.6]} 14... Rc8 {[%clk 0:02:44.8]} 15. Re1 {[%clk
0:02:51.4]} 15... Qd6 {[%clk 0:02:45.1]} 16. a3 {[%clk 0:02:46.7]} 16... Ne4
{[%clk 0:02:39.2]} 17. Ne5 {[%clk 0:02:36]} 17... f6 {[%clk 0:02:33]} 18. Nf3
{[%clk 0:02:30.2]} 18... Bc7 {[%clk 0:02:24.3]} 19. Bd2 {[%clk 0:02:10.7]} 19...
Bb8 {[%clk 0:02:12.1]} 20. Bxe4 {[%clk 0:01:41]} 20... dxe4 {[%clk 0:02:13]} 21.
Rxe4 {[%clk 0:01:40.9]} 21... Bd5 {[%clk 0:02:03.4]} 22. Bb4 {[%clk 0:01:35.4]}
22... Qc7 {[%clk 0:01:52.6]} 23. Rxe8+ {[%clk 0:01:25]} 23... Rxe8 {[%clk
0:01:53.5]} 24. g3 {[%clk 0:01:00.4]} 24... Qc6 {[%clk 0:01:38.2]} 25. Nh4
{[%clk 0:00:52.8]} 25... Qe6 {[%clk 0:01:22.6]} 26. Qg4 {[%clk 0:00:41.9]} 26...
Qxg4 {[%clk 0:01:14.1]} 27. hxg4 {[%clk 0:00:42.8]} 27... Re4 {[%clk 0:01:13.1]}
28. Nf5 {[%clk 0:00:39.6]} 28... Bb3 {[%clk 0:01:02]} 29. f3 {[%clk 0:00:31.3]}
29... Re2 {[%clk 0:00:56.4]} 30. Re1 {[%clk 0:00:31.1]} 30... Rxe1+ {[%clk
0:00:54.1]} 31. Bxe1 {[%clk 0:00:32]} 31... Kf7 {[%clk 0:00:52.6]} 32. Kf2
{[%clk 0:00:31.7]} 32... g6 {[%clk 0:00:49]} 33. Ne3 {[%clk 0:00:21.8]} 33...
Bc7 {[%clk 0:00:47.5]} 34. Bc3 {[%clk 0:00:20.8]} 34... Bb6 {[%clk 0:00:43.3]}
35. Ng2 {[%clk 0:00:20.7]} 35... Bc2 {[%clk 0:00:35.3]} 36. Ke3 {[%clk
0:00:18.2]} 36... Ke6 {[%clk 0:00:34.1]} 37. Nf4+ {[%clk 0:00:18.2]} 37... Kf7
{[%clk 0:00:34.3]} 38. Nd5 {[%clk 0:00:16.2]} 38... Bd8 {[%clk 0:00:33.7]} 39.
Nb4 {[%clk 0:00:15.3]} 39... Bb1 {[%clk 0:00:32.6]} 40. Nd3 {[%clk 0:00:15.4]}
40... Bc7 {[%clk 0:00:29]} 41. Nf4 {[%clk 0:00:14.8]} 41... f5 {[%clk 0:00:27]}
42. gxf5 {[%clk 0:00:14.1]} 42... Bxf5 {[%clk 0:00:27.9]} 43. Ne2 {[%clk
0:00:10.5]} 43... h5 {[%clk 0:00:24.7]} 44. d5 {[%clk 0:00:10.9]} 44... Bd7
{[%clk 0:00:22.7]} 45. f4 {[%clk 0:00:10.9]} 45... Bb6+ {[%clk 0:00:19]} 46. Bd4
{[%clk 0:00:11.4]} 46... Bc7 {[%clk 0:00:14.1]} 47. Nc3 {[%clk 0:00:11.6]} 47...
b6 {[%clk 0:00:13.5]} 48. Ne4 {[%clk 0:00:11.7]} 48... Bf5 {[%clk 0:00:12.9]}
49. Be5 {[%clk 0:00:10.8]} 49... Bd8 {[%clk 0:00:12.2]} 50. Nd6+ {[%clk
0:00:10.9]} 50... Ke7 {[%clk 0:00:10.3]} 51. Nxf5+ {[%clk 0:00:11.2]} 51... gxf5
{[%clk 0:00:11.2]} 52. Bb8 {[%clk 0:00:11.3]} 52... a6 {[%clk 0:00:10.8]} 53.
Kd4 {[%clk 0:00:11.7]} 53... Kd7 {[%clk 0:00:09.9]} 54. Ke5 {[%clk 0:00:11.6]}
54... h4 {[%clk 0:00:10.5]} 55. gxh4 {[%clk 0:00:11.6]} 55... Bxh4 {[%clk
0:00:11.4]} 56. Kxf5 {[%clk 0:00:12]} 56... Bf2 {[%clk 0:00:12.2]} 57. Be5
{[%clk 0:00:11.8]} 57... b5 {[%clk 0:00:12]} 58. Ke4 {[%clk 0:00:11.7]} 58... a5
{[%clk 0:00:12.3]} 59. Bd4 {[%clk 0:00:11.9]} 59... Bh4 {[%clk 0:00:11.9]} 60.
f5 {[%clk 0:00:12]} 60... b4 {[%clk 0:00:12.7]} 61. axb4 {[%clk 0:00:11.4]}
61... axb4 {[%clk 0:00:13.6]} 62. b3 {[%clk 0:00:12]} 62... Kd6 {[%clk
0:00:13.6]} 63. f6 {[%clk 0:00:11.9]} 63... Kd7 {[%clk 0:00:13.4]} 64. Ke5
{[%clk 0:00:07.4]} 64... Bg3+ {[%clk 0:00:12.9]} 65. Kf5 {[%clk 0:00:07.3]}
65... Kd6 {[%clk 0:00:13.4]} 66. f7 {[%clk 0:00:05.6]} 66... Ke7 {[%clk
0:00:13.2]} 67. Kg6 {[%clk 0:00:05.8]} 67... Bd6 {[%clk 0:00:11.4]} 68. Bg7
{[%clk 0:00:05.9]} 1-0

[Event "*** SCC Grand Prix: Titled Tuesday Blitz"]
[Site "Chess.com"]
[Date "2020.10.13"]
[Round "5"]
[White "Nemsko"]
[Black "rugbyclub"]
[Result "1-0"]
[WhiteElo "2366"]
[BlackElo "2218"]
[TimeControl "180+1"]
[EndTime "10:57:35 PDT"]
[Termination "Nemsko won on time"]

1. e4 {[%clk 0:03:00.9]} 1... e5 {[%clk 0:02:58]} 2. Nf3 {[%clk 0:03:01]} 2...
Nc6 {[%clk 0:02:58.1]} 3. Bb5 {[%clk 0:03:01.6]} 3... a6 {[%clk 0:02:57.1]} 4.
Ba4 {[%clk 0:03:02]} 4... Nf6 {[%clk 0:02:57.3]} 5. O-O {[%clk 0:03:02]} 5...
Be7 {[%clk 0:02:57.9]} 6. Re1 {[%clk 0:03:01.1]} 6... b5 {[%clk 0:02:57.8]} 7.
Bb3 {[%clk 0:03:01.5]} 7... d6 {[%clk 0:02:58.4]} 8. c3 {[%clk 0:03:00.8]} 8...
O-O {[%clk 0:02:57.6]} 9. h3 {[%clk 0:03:01.3]} 9... Nb8 {[%clk 0:02:57.2]} 10.
d4 {[%clk 0:03:01.3]} 10... Nbd7 {[%clk 0:02:57.6]} 11. Bc2 {[%clk 0:02:58.9]}
11... Bb7 {[%clk 0:02:53.1]} 12. Nbd2 {[%clk 0:02:53]} 12... Re8 {[%clk
0:02:53.1]} 13. Nf1 {[%clk 0:02:53.1]} 13... Bf8 {[%clk 0:02:51.8]} 14. Ng3
{[%clk 0:02:53.5]} 14... g6 {[%clk 0:02:51.7]} 15. Bg5 {[%clk 0:02:49.3]} 15...
h6 {[%clk 0:02:50.8]} 16. Bd2 {[%clk 0:02:49.3]} 16... c6 {[%clk 0:02:37.7]} 17.
Qe2 {[%clk 0:02:39.5]} 17... Bg7 {[%clk 0:02:37.2]} 18. Rad1 {[%clk 0:02:39]}
18... Qc7 {[%clk 0:02:37]} 19. Nh2 {[%clk 0:02:29.5]} 19... d5 {[%clk
0:02:33.4]} 20. dxe5 {[%clk 0:02:26.6]} 20... Nxe5 {[%clk 0:02:31.5]} 21. b3
{[%clk 0:02:14.5]} 21... Ned7 {[%clk 0:02:17.9]} 22. Qf1 {[%clk 0:02:03.4]}
22... c5 {[%clk 0:02:14.3]} 23. exd5 {[%clk 0:01:47]} 23... Nxd5 {[%clk
0:02:09.9]} 24. Rxe8+ {[%clk 0:01:44.6]} 24... Rxe8 {[%clk 0:02:08.8]} 25. Re1
{[%clk 0:01:44.4]} 25... Qb8 {[%clk 0:01:53]} 26. c4 {[%clk 0:01:37.2]} 26...
Rxe1 {[%clk 0:01:51.3]} 27. Qxe1 {[%clk 0:01:34.5]} 27... bxc4 {[%clk
0:01:45.6]} 28. bxc4 {[%clk 0:01:35.4]} 28... Nf4 {[%clk 0:01:43.5]} 29. Be4
{[%clk 0:01:19.4]} 29... Be5 {[%clk 0:01:20.1]} 30. Nf3 {[%clk 0:01:14.8]} 30...
Bc7 {[%clk 0:01:13.3]} 31. Bxb7 {[%clk 0:01:03.1]} 31... Qxb7 {[%clk 0:01:12.5]}
32. Qe8+ {[%clk 0:01:03]} 32... Nf8 {[%clk 0:01:09.7]} 33. Ne4 {[%clk
0:01:00.8]} 33... Qb1+ {[%clk 0:00:59.5]} 34. Be1 {[%clk 0:01:00.8]} 34... Ne2+
{[%clk 0:00:44.4]} 35. Kf1 {[%clk 0:00:59.9]} 35... Qd3 {[%clk 0:00:37.8]} 36.
Nf6+ {[%clk 0:00:46.9]} 36... Kg7 {[%clk 0:00:35.9]} 37. Nh5+ {[%clk 0:00:34.1]}
37... gxh5 {[%clk 0:00:35.9]} 38. Qxe2 {[%clk 0:00:34.3]} 38... Qxe2+ {[%clk
0:00:31]} 39. Kxe2 {[%clk 0:00:35.2]} 39... Ne6 {[%clk 0:00:31.4]} 40. Bc3+
{[%clk 0:00:27.1]} 40... Kg6 {[%clk 0:00:31.5]} 41. Nd2 {[%clk 0:00:27.6]} 41...
Kf5 {[%clk 0:00:27.1]} 42. Kf3 {[%clk 0:00:20.5]} 42... h4 {[%clk 0:00:25.6]}
43. g3 {[%clk 0:00:19]} 43... hxg3 {[%clk 0:00:25.1]} 44. fxg3 {[%clk
0:00:19.9]} 44... Ng5+ {[%clk 0:00:25.6]} 45. Kg2 {[%clk 0:00:20.4]} 45... Ne4
{[%clk 0:00:24.9]} 46. Nxe4 {[%clk 0:00:16.6]} 46... Kxe4 {[%clk 0:00:25.6]} 47.
Bg7 {[%clk 0:00:17.3]} 47... h5 {[%clk 0:00:25.1]} 48. h4 {[%clk 0:00:07.5]}
48... Kd3 {[%clk 0:00:23.5]} 49. Kf3 {[%clk 0:00:07.9]} 49... f5 {[%clk
0:00:19.5]} 50. Bh6 {[%clk 0:00:05.5]} 50... Kxc4 {[%clk 0:00:19.4]} 51. Be3
{[%clk 0:00:02.7]} 51... Kd5 {[%clk 0:00:17.4]} 52. Bd2 {[%clk 0:00:02.5]} 52...
c4 {[%clk 0:00:17.1]} 53. Bc3 {[%clk 0:00:03]} 53... Bb6 {[%clk 0:00:16]} 54.
Kf4 {[%clk 0:00:03.1]} 54... Bd4 {[%clk 0:00:16.1]} 55. Bd2 {[%clk 0:00:01.3]}
55... c3 {[%clk 0:00:14.4]} 56. Bc1 {[%clk 0:00:01.9]} 56... Bf2 {[%clk
0:00:13.2]} 57. Kxf5 {[%clk 0:00:01.5]} 57... Bxg3 {[%clk 0:00:13]} 58. Kg5
{[%clk 0:00:02.4]} 58... Ke4 {[%clk 0:00:11.4]} 59. Kxh5 {[%clk 0:00:02.4]}
59... Bf4 {[%clk 0:00:11.9]} 60. Ba3 {[%clk 0:00:01.6]} 60... c2 {[%clk
0:00:12]} 61. Kg4 {[%clk 0:00:02]} 61... c1=Q {[%clk 0:00:10.7]} 62. Bxc1 {[%clk
0:00:02.2]} 62... Bxc1 {[%clk 0:00:11.1]} 63. h5 {[%clk 0:00:02.6]} 63... Kd3
{[%clk 0:00:11.4]} 64. Kf5 {[%clk 0:00:01.5]} 64... Kc2 {[%clk 0:00:09.8]} 65.
Ke4 {[%clk 0:00:02.4]} 65... a5 {[%clk 0:00:09.9]} 66. a4 {[%clk 0:00:02.2]}
66... Kb3 {[%clk 0:00:09.3]} 67. Kd5 {[%clk 0:00:03.1]} 67... Kxa4 {[%clk
0:00:09.2]} 68. Kc5 {[%clk 0:00:04]} 68... Bh6 {[%clk 0:00:07.2]} 69. Kc4 {[%clk
0:00:04.9]} 69... Ka3 {[%clk 0:00:06.9]} 70. Kc3 {[%clk 0:00:05.8]} 70... a4
{[%clk 0:00:07.1]} 71. Kc2 {[%clk 0:00:06.7]} 71... Ka2 {[%clk 0:00:07.3]} 72.
Kc3 {[%clk 0:00:07.1]} 72... a3 {[%clk 0:00:07.3]} 73. Kc2 {[%clk 0:00:08]}
73... Ka1 {[%clk 0:00:06.9]} 74. Kc3 {[%clk 0:00:08.3]} 74... a2 {[%clk
0:00:03.4]} 75. Kb3 {[%clk 0:00:09.2]} 1-0